Workbook

Sheet saisie
A1: Renseigner les cellules des lignes : 5, 6 et 7 , dans les colones B, C, D et E , ainsi que la cellule F5
B2: Point de départ | D2: Point d'arrivée
A3: 57.29577951 | B3: N1 | C3: E1 | D3: N2 | E3: E2 | F3: SENS : Aller (A)
A4: 1.570796327 | B4: d m s | C4: d m s | D4: d m s | E4: d m s | F4: ou Retour (R) :
A5: Dégrés | B5: 43 | C5: 3 | D5: 43 | E5: 4 | F5: a
A6: minutes | B6: 6 | C6: 7 | D6: 26.512 | E6: 25.28
A7: secondes | B7: 32 | C7: 61 | D7: 0 | E7: 0
A8: Degrés Décimaux | B8: =(B5+(B6/60)+(B7/3600)) -> 43.10888889 | C8: 3.133611111 | D8: 43.44186667 | E8: 4.421333333
A9: radians : | B9: =B8/$A3 -> 0.752392048 | C9: 0.05469183137 | D9: 0.7582036066 | E9: 0.077166824
F10: "Résultat : "
B12: cap = | C12: =calculs!F17 -> 70.00650813 | D12: degrés | F12: Distance (km) :
F13: =IF(AND(B9=D9,C9=E9),0,A23) -> 110.5455112
C14: =TRUNC(C12) -> 70 | D14: Dégrés
B15: Soit : | C15: =TRUNC((C12-C14)*60) -> 0 | D15: minutes | F15: Distance (miles ) :
C16: =(C12*3600)-((C14*3600)+(C15*60)) -> 23.42925216 | D16: secondes | F16: =F13*540/1000 -> 59.69457603
A17: cellule F5 :renseigner le sens : a ou A pour l'aller, r ou R pour le retour
A18: N1 = Latitude du point de départ | D18: E1 = longitude du point de départ
A19: N2 = Latitude du point d'arrivée | C19: E2 = longitude du point d'arrivée
A22: Calcul intermédiaire
A23: =A3*(1000/9)*ACOS((SIN(B9)*SIN(D9))+(COS(B9)*COS(D9)*COS(C9-E9))) -> 110.5455112

Sheet cap
A1: étape intermédiaire | B1: Fonction Aller / Retour | D1: Ne rien renseigner dans cette feuille
A2: =saisie!F5 -> a
A3: 57.29577951 | B3: N1 | C3: E1 | D3: N2 | E3: E2
A4: =IF(A2="a","r","a") -> r | B4: d m s | C4: d m s | D4: d m s | E4: d m s
A5: Dégrés | B5: =IF(A10="A",saisie!B5,saisie!D5) -> 43 | C5: =IF(A10="A",saisie!C5,saisie!E5) -> 3 | D5: =IF(A10="A",saisie!D5,saisie!B5) -> 43 | E5: =IF(A10="A",saisie!E5,saisie!C5) -> 4
A6: minutes | B6: =IF(A10="A",saisie!B6,saisie!D6) -> 6 | C6: =IF(A10="A",saisie!C6,saisie!E6) -> 7 | D6: =IF(A10="A",saisie!D6,saisie!B6) -> 26.512 | E6: =IF(A10="A",saisie!E6,saisie!C6) -> 25.28
A7: secondes | B7: =IF(A10="A",saisie!B7,saisie!D7) -> 32 | C7: =IF(A10="A",saisie!C7,saisie!E7) -> 61 | D7: =IF(A10="A",saisie!D7,saisie!B7) -> 0 | E7: =IF(A10="A",saisie!E7,saisie!C7) -> 0
A8: Degrés Décimaux | B8: =(B5+(B6/60)+(B7/3600)) -> 43.10888889 | C8: 3.133611111 | D8: 43.44186667 | E8: 4.421333333
A9: radians : | B9: =B8/$A3 -> 0.752392048 | C9: 0.05469183137 | D9: 0.7582036066 | E9: 0.077166824
A10: =IF(AND(ABS(saisie!C8-saisie!E8)>180,ABS(saisie!E8)>90),A4,A2) -> a
C12: en feuille saisie :
C13: Sélection : | D13: =IF(saisie!F5="a","Aller","Retour") -> Aller
A18: rem : A2, A4, A10 : prise en compte des méridiens > 90 ° ou < -90° ( ½ sphère Antipode )

Sheet calculs
B1: N1 = | C1: =cap!B9 -> 0.752392048 | D1: rad | F1: un radian = | G1: 57.29577951 | H1: degrés
B2: E1 = | C2: =cap!C9 -> 0.05469183137 | D2: rad | F2: Ne rien renseigner dans cette feuille
B3: N2 = | C3: =cap!D9 -> 0.7582036066 | D3: rad
B4: E2 = | C4: =cap!E9 -> 0.077166824 | D4: rad
B5: N "pôle" = | C5: 1.570796327 | D5: rad
B6: a = | C6: =C5-C3 -> 0.8125927204 | D6: rad
B7: cos a = | C7: =COS(C6) -> 0.6876182434
B8: b = | C8: =C5-C1 -> 0.818404279 | D8: rad
B9: sin b = | C9: =SIN(C8) -> 0.7300562646
B10: cos b = | C10: =COS(C8) -> 0.683387043
B11: c = | C11: =ACOS(SIN(C1)*SIN(C3)+COS(C1)*COS(C3)*COS(C2-C4)) -> 0.01736444829 | D11: rad
B12: sin c = | C12: =SIN(C11) -> 0.01736357567
B13: cos c = | C13: =COS(C11) -> 0.9998492418
B14: Avant correction trigonométrique | E14: Cos A (+/- e )
B15: Cos A = | C15: =IF(E15>1,1,IF(E15<-1,-1,E15)) -> 0.341913403 | E15: =(C7-(C10*C13))/(C9*C12) -> 0.341913403 | F15: Après correction éventuelle,
B16: A = | C16: =ACOS(C15) -> 1.221844065 | D16: rad | F16: le cap est :
B17: Cap = | C17: =C16*G1 -> 70.00650813 | D17: deg· | F17: =IF(AND(C2=C4,C3>C1),0,IF(AND(C2=C4,C3<C1),180,IF(AND(C2=C4,C3=C1),0,IF(C2<C4,C17,360-C17)))) -> 70.00650813 | G17: degrés
A18: La correction trigonométrique est effectuée si le "triangle de cap" se trouve inversé : ( par exemple
A19: si le trajet a lieu vers l'ouest dans l'hémisphère nord ).
A22: Si #NOMBRE ! s'affiche dans quelque(s) cellule(s), cela signifie : point de départ = point d'arrivée ( L ? )
A24: Si #DIV/0 ! s'affiche dans quelque(s) cellule(s), cela signifie : point de départ = point d'arrivée ( L ? )

Sheet SUITE
B2: cap fond (vrais) | C2: =saisie!C12 -> 70.00650813 | D2: année carte | E2: 1985
B3: déviation (d) | C3: 5 | D3: année actuelle | E3: 2017
B4: déclinaison avec une correction | D4: Degrée | E4: minute | F4: seconde | G4: Position
B5: C avec correction | C5: =((IF(G5="-",-1,1)*(D5+E5/60+F5/3600))*(E3-E2))/60 -> 4.8 | D5: 9 | G5: +
B7: la déclinaison Carte | D7: Degrée | E7: minute | F7: seconde | G7: Position
B8: Déclinaision(D) | C8: =IF(G8="-",-1,1)*(D8+E8/60+F8/3600) -> -2.5 | D8: 2 | E8: 30 | G8: -
B10: W = d + D | C10: =SUM(C3,C8) -> 2.5
B11: Cap compas (Cc) | C11: =ROUNDDOWN(C2-C10,0)+0.6*((C2-C10)-ROUNDDOWN(C2-C10,0)) -> 67.30390488
B14: Degré rosecarte | C14: 4
B15: Minute rose carte | C15: 10
B16: MINUTE corigée | C16: =SUM(C15,(C17*(E3-E2))/60) -> 12.13333333
B17: C (+- E ou W) | C17: 4
